Cogmind - Beta 16 @@@ ROGUE MODE // 2026.01.16 @ 06:51:33 Player: shapeshifter Result: Destroyed by B-75 Beast with Magnetic Acceleration Cannon Performance ------------- Evolutions (3) 1500 Regions Visited (10) 2000 Robots Destroyed (119) 595 Value Destroyed (5946) 5946 Prototype IDs (24) 480 Alien Tech Used (0) 0 Bonus (4160) 4160 TOTAL SCORE: 14681 Bonus ------- High Alert Combat Kills 867 Follower Combat Kills 938 Entered Garrisons 600 Used RIF Installer 1500 Aligned with FarCom 300 Friendly Fire -45 Cogmind --------- Core Integrity 0/700 Matter 5/300 Energy 100/100 System Corruption 1% Temperature Cool (24) Movement Core (800) Ox15 Location -7/Garrison Parts ------- > --- POWER (1) -------- (None) > --- PROPULSION (3) --- (None) > --- UTILITY (6) ------ High-capacity Storage Unit Hacking Suite Relay Coupler [Grunt] (33) Relay Coupler [Sentry] (22) > --- WEAPON (3) ------- Mini Assault Cannon Mini Assault Cannon > --- INVENTORY (20) --- Improved Deuterium Engine Cooling System High-capacity Matter Pod (8) Modified TNC EM Disruption Field System Shield Relay Coupler [NC] (38) Relay Coupler [Cutter] (26) Relay Coupler [Grunt] (22) Relay Coupler [Grunt] (33) Relay Coupler [Brawler] (27) Relay Coupler [Specialist] (28) Relay Coupler [Hunter] (14) Relay Coupler [Hunter] (13) Chronowheel Grenade Launcher Remote Datajack Peak State ------------ > --- POWER ------------ Fission Core > --- PROPULSION ------- Light Treads Advanced Treads Compact Wheel > --- UTILITY ---------- Cooling System High-capacity Storage Unit Improved Salvage Targeting Computer Core Analyzer Hacking Suite Relay Coupler [Sentry] > --- WEAPON ----------- Hypervelocity Gauss Rifle Hypervelocity Gauss Rifle Hypervelocity Gauss Rifle > --- INVENTORY -------- Cooling System High-capacity Matter Pod Modified TNC Target Analyzer EM Disruption Field System Shield Relay Coupler [NC] Relay Coupler [Cutter] Relay Coupler [Grunt] Relay Coupler [Sentry] Relay Coupler [Sentry] Relay Coupler [Sentry] Relay Coupler [Specialist] Chronowheel Gatling Laser Gauss Rifle Grenade Launcher Remote Datajack Remote Datajack [Rating: 50] Favorites ----------- Power Deuterium Engine Engine Deuterium Engine Power Core Light Nuclear Core Propulsion Light Treads Treads Light Treads Leg Carbon-fiber Leg Wheel Compact Wheel Utility High-capacity Storage Unit Device Cooling System Storage High-capacity Storage Unit Processor Core Analyzer Hackware Hacking Suite Protection Improved Medium Armor Plating Weapon Hypervelocity Gauss Rifle Energy Gun Gatling Laser Energy Cannon Heavy Plasma Cannon Ballistic Gun Hypervelocity Gauss Rifle Ballistic Cannon Gauss Cannon Launcher Grenade Launcher Special Weapon Remote Datajack Special Melee Weapon Improved Datajack Build | -11 -10 -10 -10 -9 -8 -8 -8 -8 -7 -7 ------- Run | Yrd Mat Min Exi Min Mat Gar Mat Gar Fac Gar Slots Evolved 6 | . . . . . 4 . . . 2 . Power . | . . . . . . . . . . . Propulsion 1 | . . . . . . . . . 1 . Utility 4 | . . . . . 4 . . . . . Weapon 1 | . . . . . . . . . 1 . Parts Attached 81 | 7 4 8 4 3 4 13 7 10 8 13 Power 8 | 1 1 2 . . 1 . 1 1 . 1 Engine 5 | 1 1 . . . 1 . 1 . . 1 Core 3 | . . 2 . . . . . 1 . . Reactor . | . . . . . . . . . . . Propulsion 23 | 2 . 5 . 1 . 2 3 2 5 3 Treads 15 | 2 . . . . . 2 3 2 3 3 Leg 2 | . . 1 . 1 . . . . . . Wheel 6 | . . 4 . . . . . . 2 . Hover . | . . . . . . . . . . . Flight . | . . . . . . . . . . . Utility 28 | 2 1 . 3 2 3 4 3 3 1 6 Device 7 | 1 . . 2 . 1 2 . 1 . . Storage 4 | 1 1 . 1 1 . . . . . . Processor 3 | . . . . . . 2 . . 1 . Hackware 13 | . . . . . 2 . 3 2 . 6 Protection 1 | . . . . 1 . . . . . . Artifact . | . . . . . . . . . . . Weapon 22 | 2 2 1 1 . . 7 . 4 2 3 Energy Gun 1 | . . . . . . . . 1 . . Energy Cannon 2 | . . . . . . 2 . . . . Ballistic Gun 11 | 2 2 . 1 . . 1 . 3 . 2 Ballistic Cannon 3 | . . . . . . 1 . . 1 1 Launcher 2 | . . 1 . . . 1 . . . . Special Weapon 2 | . . . . . . 1 . . 1 . Impact Weapon . | . . . . . . . . . . . Slashing Weapon . | . . . . . . . . . . . Piercing Weapon . | . . . . . . . . . . . Special Melee Weapon 1 | . . . . . . 1 . . . . Unidentified Prototypes 1 | . . . . . . . . . 1 . Parts Lost 33 | . . 5 . . . 5 3 5 . 15 Power 5 | . . 1 . . . . 1 1 . 2 Propulsion 14 | . . 3 . . . 2 2 3 . 4 Utility 5 | . . 1 . . . 1 . . . 3 Weapon 9 | . . . . . . 2 . 1 . 6 Highest Loss Streak 6 | . . 3 . . . 2 2 3 . 6 To Critical Strikes . | . . . . . . . . . . . Average Backups 16 | 4 8 12 15 17 19 19 19 18 19 18 Power . | 1 1 . . . . . . . . . Propulsion 1 | 1 . . 1 . 2 1 1 1 1 . Utility 9 | . 5 7 7 9 9 11 11 11 12 12 Weapon 3 | 1 1 3 6 6 5 3 4 3 2 2 Tool/Special . | . . . . . . . . . . . Unused Backups 34 | . 4 . 4 . 3 7 1 . 1 14 Power 2 | . . . . . . . 1 . . 1 Propulsion 2 | . 2 . . . . . . . . . Utility 24 | . 1 . 4 . 1 6 . . . 12 Weapon 5 | . 1 . . . 2 1 . . 1 . Tool/Special 1 | . . . . . . . . . . 1 Average Slot Usage (%) 93 | . 99 86 69 85 73 98 92 99 97 92 Engine 6 | . 14 1 . . 3 9 8 2 . 4 Core 4 | . . 12 14 14 5 . . 5 7 1 Treads 15 | . 28 15 . . . 13 17 17 15 17 Wheel 5 | . . 5 28 26 18 4 . . 6 1 Device 7 | . 14 5 8 5 8 9 2 6 7 . Storage 12 | . 14 14 14 14 9 16 10 9 7 7 Processor 10 | . . . . . . 15 18 18 13 13 Hackware 10 | . . . . . 11 9 20 20 15 23 Protection 1 | . . . . 8 9 1 . . . . Energy Cannon 2 | . . . . . . 5 10 2 . . Ballistic Gun 12 | . 27 27 4 14 9 5 . 9 22 10 Ballistic Cannon 2 | . . . . . . 5 . . . 8 Special Weapon 1 | . . . . . . . 4 3 . 1 Peak Build Rating 50 | 7 10 14 28 35 40 40 38 44 50 48 Average Rating 30 | 5 9 11 15 30 37 34 34 40 48 44 On Entrance 26 | . 7 10 8 28 32 40 36 34 44 47 Avg Prop Armor Cover (%) 11 | . . 11 . . . . . . 10 14 Naked Turns . | . . . . . . . . . . . Heaviest Build 73 | 13 32 32 37 62 68 73 72 64 70 70 Greatest Support 62 | 40 40 40 26 33 26 40 40 42 42 62 Greatest Overweight (x) 4 | . . 3 1 2 2 2 1 1 4 4 Average Overweight (x) 1 | . . 1 . 1 2 1 1 1 2 . Largest Inventory Capacity 20 | 8 15 15 15 20 20 20 20 20 20 20 Average Capacity 17 | 7 11 15 15 17 20 20 20 20 20 20 Most Carried 20 | 7 10 15 15 20 20 20 20 20 20 20 Average Carried 16 | 4 8 12 14 17 19 19 19 18 19 18 Final Capacity 20 | 8 15 15 15 20 20 20 20 20 20 20 Final Carried 20 | 5 10 15 15 20 19 20 19 19 20 17 Class Distribution -------------------- 34% | Mutant 26% | Bothacker-Mutant 20% | Commander-Mutant 12% | Bothacker-Gunner 4% | Hacker-Mutant Dominant Class ---------------- Mutant | -10/Materials Mutant | -10/Mines Mutant | -10/Exiles Mutant | -9/Mines Mutant | -8/Materials Commander-Mutant | -8/Garrison Bothacker-Mutant | -8/Materials Bothacker-Mutant | -8/Garrison Bothacker-Gunner | -7/Factory Bothacker-Gunner | -7/Garrison Resources | -11 -10 -10 -10 -9 -8 -8 -8 -8 -7 -7 ----------- Run | Yrd Mat Min Exi Min Mat Gar Mat Gar Fac Gar Matter Collected 3977 | 292 308 333 91 73 48 1122 120 530 610 450 Remotely . | . . . . . . . . . . . Salvage Created 4188 | 144 438 389 . 130 639 890 167 438 470 483 Parts 265 | 13 36 22 . 5 34 60 9 32 34 20 Haulers Intercepted 1 | . . . . . . . . . 1 . Recyclers Shooed 1 | 1 . . . . . . . . . . Parts Field Recycled . | . . . . . . . . . . . Retrieved Matter . | . . . . . . . . . . . Parts Self-Destructed . | . . . . . . . . . . . Prevented . | . . . . . . . . . . . Parts Restored . | . . . . . . . . . . . Kills | -11 -10 -10 -10 -9 -8 -8 -8 -8 -7 -7 ------- Run | Yrd Mat Min Exi Min Mat Gar Mat Gar Fac Gar Combat Hostiles Destroyed 106 | . 13 9 . 5 13 31 3 15 7 10 Guns 69 | . 13 9 . 5 13 11 . 2 7 9 Cannons 24 | . . . . . . 14 3 6 . 1 AOE 13 | . . . . . . 6 . 7 . . Classes Destroyed 15 | 3 4 . . . 3 2 1 . 1 1 Worker 1 | 1 . . . . . . . . . . Builder 1 | . 1 . . . . . . . . . Tunneler 4 | 3 . 1 . . . . . . . . Hauler 1 | . . . . . . . . . 1 . Recycler 2 | 1 . 1 . . . . . . . . Watcher 3 | . 1 . . . 2 . . . . . Swarmer 38 | . 6 6 . 3 3 12 . 8 . . Saboteur 1 | . . . . . . 1 . . . . Grunt 41 | . 7 2 . 2 6 10 . 5 2 7 Brawler 4 | . . . . . 1 1 1 . . 1 Duelist 6 | . . . . . 2 4 . . . . Sentry 4 | . . . . . 1 1 1 . 1 . Hunter 5 | . . . . . . . 1 1 3 . Programmer 6 | . . . . . . 2 . 2 1 1 Behemoth 1 | . . . . . . . . . . 1 Best Kill Streak 7 | 2 4 3 . 3 5 4 2 7 2 4 Combat Bots Only 7 | . 3 3 . 3 4 4 2 7 2 4 Max Kills in Single Turn 4 | 1 2 2 . 1 1 3 1 4 1 3 Gunslinging 1 | . . 1 . . . . . . . 1 Exploded 4 | . . . . . . 3 . 4 . . Melee . | . . . . . . . . . . . Uniques/NPCs Destroyed 1 | . . 1 . . . . . . . . YI-UF0 (-10/Mines) Combat | -11 -10 -10 -10 -9 -8 -8 -8 -8 -7 -7 -------- Run | Yrd Mat Min Exi Min Mat Gar Mat Gar Fac Gar Hostile Shots Fired 544 | . 44 53 . 7 17 99 32 84 56 152 Missed 150 | . 11 15 . 3 5 33 7 24 7 45 Hits 394 | . 33 38 . 4 12 66 25 60 49 107 Melee 12 | . . . . . . 5 . . . 7 Projectile 382 | . 33 38 . 4 12 61 25 60 49 100 AOE 16 | . . 6 . . . . 5 . . 5 Critical Strikes 18 | . . . . . . 2 . 4 5 7 Part Disruptions 2 | . . . . . . . . 2 . . Damage Taken 6155 | . 392 446 . 39 144 872 427 972 589 2274 Core 1225 | . 34 57 . 9 10 98 39 277 58 643 Absorbed by Shields . | . . . . . . . . . . . Regen/Repaired (Parts) 39 | . 39 . . . . . . . . . Core Remaining (%) 60 | 100 . . . 60 . . . 22 . . Volleys Fired 385 | 17 37 35 . . . 113 23 75 29 56 Largest 3 | 2 2 2 . . . 2 2 2 3 3 Hottest 159 | 40 46 46 . . . 90 159 90 99 108 Shots Fired 729 | 34 75 72 . 8 44 197 27 83 85 104 Gun 489 | 34 75 72 . 8 44 81 . 25 84 66 Cannon 174 | . . . . . . 90 18 38 . 28 Launcher 18 | . . . . . . 8 . 10 . . Special 48 | . . . . . . 18 9 10 1 10 Kinetic 587 | 34 75 72 . 8 44 152 . 24 84 94 Thermal 67 | . . . . . . 14 14 39 . . Explosive 18 | . . . . . . 8 . 10 . . Electromagnetic 9 | . . . . . . 5 4 . . . Robot Hit Streak 16 | 13 11 9 . 5 11 16 9 8 10 11 Robot Miss Streak 7 | 3 3 7 . 1 4 7 2 3 3 4 Penetration Max 1 | . . . . . . 1 . . 1 1 Secondary Targets 7 | . . 4 . . . . . . 1 2 Max Gunslinging Chain 1 | . . 1 . . . . . . 1 1 Autonomous 67 | . . . . 8 44 15 . . . . Shots Hit Robots 431 | 25 49 33 . 7 32 110 16 45 54 60 Core Hits 215 | 14 24 14 . 5 18 56 4 23 27 30 Critical Kills 12 | . . . . . . . . 1 7 4 Critical Parts Destroyed 22 | . 1 1 . . . 1 . 3 10 6 Critical Strikes 41 | . 1 1 . . . 7 . 4 17 11 Destroy 34 | . 1 1 . . . 1 . 4 17 10 Blast 7 | . . . . . . 6 . . . 1 Melee Attacks 12 | . . . . . . 12 . . . . Impact . | . . . . . . . . . . . Slashing . | . . . . . . . . . . . Piercing . | . . . . . . . . . . . Sneak Attacks 12 | . . . . . . 12 . . . . Combat Hostiles . | . . . . . . . . . . . Follow-up Attacks . | . . . . . . . . . . . Damage Inflicted 8056 | 198 604 530 . 170 915 2855 357 1065 342 1020 Guns 4576 | 198 604 530 . 170 915 1101 . 156 342 560 Cannons 2600 | . . . . . . 1110 357 673 . 460 Explosions 880 | . . . . . . 644 . 236 . . Melee . | . . . . . . . . . . . Ramming . | . . . . . . . . . . . Kinetic 5937 | 198 604 530 . 170 915 2030 . 128 342 1020 Thermal 1087 | . . . . . . 129 257 701 . . Explosive 880 | . . . . . . 644 . 236 . . Electromagnetic 152 | . . . . . . 52 100 . . . Impact . | . . . . . . . . . . . Slashing . | . . . . . . . . . . . Piercing . | . . . . . . . . . . . Highest Corruption 6 | . 2 2 2 2 . 1 1 6 1 1 Average Corruption 1 | . 2 2 2 2 . 1 1 4 1 1 Corruption Purged . | . . . . . . . . . . . Corruption Blocked . | . . . . . . . . . . . Effects 93 | . 12 17 3 3 . 11 8 31 1 7 Message Errors 23 | . 4 4 . . . 3 2 9 1 . Matter Fused 26 | . 5 3 1 2 . 2 2 9 . 2 Heat Flow Errors 12 | . 1 2 1 . . 2 . 5 . 1 Energy Discharges 10 | . . 4 . . . . 3 2 . 1 Parts Fused 1 | . . . . . . . . 1 . . Data Loss (minor) 9 | . 1 2 . 1 . 1 1 2 . 1 Data Loss (major) 2 | . . . 1 . . 1 . . . . Misfires 7 | . 1 2 . . . 1 . 2 . 1 Weapon Failures 3 | . . . . . . 1 . 1 . 1 Overload Shots . | . . . . . . . . . . . Overflow Damage 34 | . . . . . . 30 . 4 . . Projectiles 16 | . . . . . . 12 . 4 . . Explosions 18 | . . . . . . 18 . . . . Melee . | . . . . . . . . . . . Knockbacks 10 | . . . . . . 10 . . . . Impact . | . . . . . . . . . . . Kinetic 8 | . . . . . . 8 . . . . Secondary 2 | . . . . . . 2 . . . . Self-Inflicted Damage 61 | . . . . . . . . 61 . . Shots 2 | . . . . . . . . 2 . . Rammed . | . . . . . . . . . . . Targets Rammed . | . . . . . . . . . . . Kicked . | . . . . . . . . . . . Crushed . | . . . . . . . . . . . Highest Temperature 317 | . 188 231 220 . . 245 293 317 12 112 Average Temperature 64 | . 23 30 127 . . 104 129 107 12 27 Received Heat Transfer 1371 | . 159 15 . 6 54 234 45 279 63 516 Effects 1 | . . . . . . . 1 . . . Energy Bleed 1 | . . . . . . . 1 . . . Siege Activations . | . . . . . . . . . . . Martial Activations . | . . . . . . . . . . . Shielding Activations . | . . . . . . . . . . . Robots Disrupted . | . . . . . . . . . . . Combat Hostiles . | . . . . . . . . . . . Robots Corrupted . | . . . . . . . . . . . Combat Hostiles . | . . . . . . . . . . . Parts Fried . | . . . . . . . . . . . Impact Corruptions . | . . . . . . . . . . . Robots Melted . | . . . . . . . . . . . Combat Hostiles . | . . . . . . . . . . . Parts Melted 5 | . . . . . 1 3 1 . . . Heat Transferred 1423 | . . . . . . 200 400 823 . . Parts Sabotaged . | . . . . . . . . . . . Parts Stolen . | . . . . . . . . . . . Parts Stripped . | . . . . . . . . . . . Power Chain Reactions . | . . . . . . . . . . . Alert | -11 -10 -10 -10 -9 -8 -8 -8 -8 -7 -7 ------- Run | Yrd Mat Min Exi Min Mat Gar Mat Gar Fac Gar Maximum Alert Level 5 | . . . . . 1 5 4 4 2 2 Low Security (%) 32 | 100 100 100 . 100 90 1 . . . . Level 1 2 | . . . . . 9 6 . . . 4 Level 2 21 | . . . . . . 6 . 30 100 95 Level 3 18 | . . . . . . 9 83 61 . . Level 4 11 | . . . . . . 30 16 7 . . Level 5 12 | . . . . . . 44 . . . . High Security . | . . . . . . . . . . . Max Security . | . . . . . . . . . . . Peak Influence 2447 | 10 156 60 . 86 211 2447 1192 1129 622 648 Initial 1192 | . . 20 . . . 130 1192 473 592 372 Average 698 | 1 43 10 . 38 76 1449 922 759 554 563 Influence Increases 5425 | 25 356 205 . 138 417 2467 385 826 210 396 Destroy 0b10 Robot/C 2780 | . 260 160 . 100 260 1040 180 420 140 220 Destroy 0b10 Robot/NC 75 | 25 10 10 . . 10 10 5 . 5 . Destroy Leader 310 | . 52 30 . 20 54 20 42 30 52 10 Allied During Kill 366 | . . . . . . 264 79 22 . 1 Successful Hack 73 | . 32 5 . . 12 12 . . 12 . Disable Machine 165 | . . . . 15 60 30 60 . . . Anti-Garrison Action 1300 | . . . . . . 900 . 250 . 150 Destroy Structure 266 | . 2 . . 3 21 146 4 74 1 15 Partial Spotted 15 | . . . . . . 15 . . . . Lose Combat Pursuer 75 | . . . . . . 30 15 30 . . Influence Decreases 4827 | 25 303 258 . 138 216 221 2104 425 807 330 Entered New Map 2311 | . . 33 . . . 71 1255 255 537 160 Time Decay 1427 | 25 303 205 . 138 152 . 334 . 270 . Lost Part 300 | . . 20 . . . 50 30 50 . 150 Lost Ally 450 | . . . . . . 100 210 120 . 20 Purge Threat 339 | . . . . . 64 . 275 . . . Squads Dispatched 7 | . . . . 1 2 . 2 . 2 . Investigation 1 | . . . . 1 . . . . . . Extermination 1 | . . . . . . . . . 1 . Reinforcement 3 | . . . . . 1 . 1 . 1 . Assault 1 | . . . . . . . 1 . . . Garrison 1 | . . . . . 1 . . . . . Intercept . | . . . . . . . . . . . Searches Triggered . | . . . . . . . . . . . Construction Impeded . | . . . . . . . . . . . Haulers Reinforced . | . . . . . . . . . . . Active Scanning Responses . | . . . . . . . . . . . Cargo Convoy Interrupts . | . . . . . . . . . . . Stealth | -11 -10 -10 -10 -9 -8 -8 -8 -8 -7 -7 --------- Run | Yrd Mat Min Exi Min Mat Gar Mat Gar Fac Gar Distress Signals 1 | . . . . . . 1 . . . . Communications Jammed . | . . . . . . . . . . . Distress Signals . | . . . . . . . . . . . Times Spotted 166 | . 15 9 . 5 16 51 17 24 9 20 Peak Tracking Total 6 | . 3 3 . 3 4 5 4 6 2 4 Tactical Retreats 5 | . . . . . . 2 1 2 . . Traps | -11 -10 -10 -10 -9 -8 -8 -8 -8 -7 -7 ------- Run | Yrd Mat Min Exi Min Mat Gar Mat Gar Fac Gar Traps Triggered 16 | . 1 . . . . 12 . 3 . . Indirectly . | . . . . . . . . . . . Trap Hack Attempts . | . . . . . . . . . . . Triggered . | . . . . . . . . . . . Disarmed . | . . . . . . . . . . . Reprogrammed . | . . . . . . . . . . . Reused . | . . . . . . . . . . . Traps Extracted . | . . . . . . . . . . . Installed . | . . . . . . . . . . . Triggered . | . . . . . . . . . . . Machines | -11 -10 -10 -10 -9 -8 -8 -8 -8 -7 -7 ---------- Run | Yrd Mat Min Exi Min Mat Gar Mat Gar Fac Gar Machines Disabled 23 | . . . . 1 4 7 4 4 . 3 Max in Single Turn 1 | . . . . 1 1 1 1 1 . 1 Garrison Relay 11 | . . . . . . 5 . 3 . 3 Machines Repaired . | . . . . . . . . . . . Machines Dismantled . | . . . . . . . . . . . Machines Sabotaged . | . . . . . . . . . . . Overloaded Fab Kills . | . . . . . . . . . . . Hacking | -11 -10 -10 -10 -9 -8 -8 -8 -8 -7 -7 --------- Run | Yrd Mat Min Exi Min Mat Gar Mat Gar Fac Gar Machines Accessed 29 | . 8 1 2 1 6 3 4 2 2 . Terminals 19 | . 6 1 . . 4 3 2 2 1 . Fabricators . | . . . . . . . . . . . Repair Stations 1 | . 1 . . . . . . . . . Recycling Units 2 | . 1 . . . 1 . . . . . Scanalyzers 1 | . . . . . . . 1 . . . Garrison Access 3 | . . . . . 1 . 1 . 1 . Total Hacks 65 | . 25 1 2 1 19 5 7 2 3 . Successful 32 | . 11 1 2 1 8 2 3 1 3 . Failed 32 | . 14 . . . 11 3 3 1 . . Catastrophic 8 | . 4 . . . 3 1 . . . . Database Lockouts 1 | . . . . . . . 1 . . . Manual 27 | . 16 . 1 . 7 . 3 . . . Terminals 49 | . 19 1 . . 16 5 4 2 2 . Fabricators . | . . . . . . . . . . . Repair Stations 2 | . 2 . . . . . . . . . Recycling Units 5 | . 4 . . . 1 . . . . . Scanalyzers 2 | . . . . . . . 2 . . . Garrison Access 4 | . . . . . 2 . 1 . 1 . Terminal Hacks 16 | . 2 1 2 1 4 2 1 1 2 . Record 1 | . . . 1 . . . . . . . Part Schematic 2 | . 1 . . . . . . . 1 . Robot Analysis 1 | . . . . . . . 1 . . . Open Door 1 | . . . . 1 . . . . . . Emergency Access Points 1 | . . . . . . 1 . . . . Terminal Index 1 | . . . . . 1 . . . . . Unreport Threat 1 | . . . . . 1 . . . . . Registered Components 2 | . . . . . 1 . . . 1 . Zone Layout 3 | . 1 1 . . 1 . . . . . Patrol Navigation 2 | . . . . . . 1 . 1 . . Proto ID Catalog 1 | . . . 1 . . . . . . . Fabricator Hacks . | . . . . . . . . . . . Repair Station Hacks 2 | . 2 . . . . . . . . . Scan Component 1 | . 1 . . . . . . . . . Repair 1 | . 1 . . . . . . . . . Recycling Unit Hacks 1 | . . . . . 1 . . . . . Retrieve Components 1 | . . . . . 1 . . . . . Scanalyzer 1 | . . . . . . . 1 . . . Retrieve Study 1 | . . . . . . . 1 . . . Garrison Access Hacks 3 | . . . . . 1 . 1 . 1 . Unlock Access 3 | . . . . . 1 . 1 . 1 . Unauthorized Hacks 9 | . 7 . . . 2 . . . . . Terminals 9 | . 7 . . . 2 . . . . . Assimilate 1 | . 1 . . . . . . . . . Botnet 2 | . . . . . 2 . . . . . Operators 1 | . 1 . . . . . . . . . Skim 5 | . 5 . . . . . . . . . Fabricators . | . . . . . . . . . . . Repair Stations . | . . . . . . . . . . . Recycling Units . | . . . . . . . . . . . Scanalyzers . | . . . . . . . . . . . Garrison Access . | . . . . . . . . . . . Data Cores Recovered . | . . . . . . . . . . . Used . | . . . . . . . . . . . Hacking Detections 21 | . 8 . . . 5 2 2 2 2 . Full Trace Events 1 | . . . . . . 1 . . . . Feedback Events . | . . . . . . . . . . . Feedback Blocked . | . . . . . . . . . . . Robot Schematics Acquired . | . . . . . . . . . . . Robots Built . | . . . . . . . . . . . Authchips . | . . . . . . . . . . . Time . | . . . . . . . . . . . Total Robot Build Rating . | . . . . . . . . . . . Part Schematics Acquired 2 | . 1 . . . . . . . 1 . Parts Built . | . . . . . . . . . . . Authchips . | . . . . . . . . . . . Time . | . . . . . . . . . . . Total Part Build Rating . | . . . . . . . . . . . Part Studies Acquired 1 | . . . . . . . 1 . . . Parts Repaired 1 | . 1 . . . . . . . . . Time 32 | . 32 . . . . . . . . . Parts Recycled . | . . . . . . . . . . . Recycled Matter . | . . . . . . . . . . . Retrieved Matter . | . . . . . . . . . . . Retrieved Components 2 | . . . . . 2 . . . . . Parts Scanalyzed . | . . . . . . . . . . . Part Schematics Acquired . | . . . . . . . . . . . Parts Damaged . | . . . . . . . . . . . Bothacking | -11 -10 -10 -10 -9 -8 -8 -8 -8 -7 -7 ------------ Run | Yrd Mat Min Exi Min Mat Gar Mat Gar Fac Gar Used RIF Installer 3 | . . . . . . 1 . 1 . 1 Signal Jammer 1 | . . . . . . . . 1 . . Patrol Navigation 1 | . . . . . . . . . . 1 Robots Hacked 17 | . . . . . . 1 4 7 1 4 Non-combat 2 | . . . . . . . 2 . . . Combat 15 | . . . . . . 1 2 7 1 4 Robot Hacks Applied 19 | . . . . . . 1 6 7 1 4 parse_system 1 | . . . . . . 1 . . . . purge_threat 2 | . . . . . . . 2 . . . block_reporting 1 | . . . . . . . 1 . . . find_shortcuts 1 | . . . . . . . . 1 . . amplify_resonance 3 | . . . . . . . . 1 . 2 reboot_system 2 | . . . . . . . . . 1 1 overwrite_iff 1 | . . . . . . . . 1 . . streamctrl_high 1 | . . . . . . . . 1 . . formatsys_low 1 | . . . . . . . 1 . . . formatsys_high 6 | . . . . . . . 2 3 . 1 Relay Couplers Released 46 | . . . . . . 20 . 14 . 12 Machine Destruction 43 | . . . . . . 20 . 11 . 12 Programmers 3 | . . . . . . . . 3 . . Attached 11 | . . . . . . . 3 2 . 6 Fabnet Peak Effective % . | . . . . . . . . . . . Robots Rewired 14 | . . . . . . 14 . . . . Allies Hacked 1 | . . . . . . 1 . . . . Hacks Repelled . | . . . . . . . . . . . Allies | -11 -10 -10 -10 -9 -8 -8 -8 -8 -7 -7 -------- Run | Yrd Mat Min Exi Min Mat Gar Mat Gar Fac Gar Total Allies 28 | . . 3 . . . 14 3 7 . 1 Largest Group 10 | . . 3 . . . 8 10 3 . 1 Highest-Rated Group 189 | . . 40 . . . 157 189 70 . 32 Highest-Rated Ally 39 | . . 16 . . . 31 31 39 . 32 Total Orders . | . . . . . . . . . . . Ally Attacks 238 | . . 6 . . . 119 60 49 . 4 Total Damage 2982 | . . 67 . . . 1445 636 679 . 155 Kills 37 | . . . . . . 23 7 6 . 1 Allies Corrupted . | . . . . . . . . . . . Allies Melted . | . . . . . . . . . . . Intel | -11 -10 -10 -10 -9 -8 -8 -8 -8 -7 -7 ------- Run | Yrd Mat Min Exi Min Mat Gar Mat Gar Fac Gar Active Infowar (turns) 1533 | 6 1130 397 . . . . . . . . Seismic 1533 | 6 1130 397 . . . . . . . . Robot Analysis Total 1 | . . . . . . . 1 . . . Derelict Logs Recovered 2 | . . 2 . . . . . . . . Drone Launches . | . . . . . . . . . . . Drone Recoveries . | . . . . . . . . . . . Exploration | -11 -10 -10 -10 -9 -8 -8 -8 -8 -7 -7 ------------- Run | Yrd Mat Min Exi Min Mat Gar Mat Gar Fac Gar Turns Passed 9409 | 203 1130 967 345 320 345 2566 750 1333 585 865 Spaces Moved 4355 | 99 330 525 352 256 241 1062 320 539 246 385 Core 15 | 15 . . . . . . . . . . Treads 2631 | 84 330 235 . . . 696 320 539 96 331 Legs 72 | . . 65 . 7 . . . . . . Wheels 1637 | . . 225 352 249 241 366 . . 150 54 Hover . | . . . . . . . . . . . Flight . | . . . . . . . . . . . Fastest Speed 50 | 50 160 90 90 105 120 120 200 200 160 155 Average Speed 169 | 143 160 157 94 116 120 198 204 202 180 176 Slowest Speed 305 | 160 160 260 105 190 120 240 240 212 212 305 Overloaded Moves . | . . . . . . . . . . . Propulsion Burnouts . | . . . . . . . . . . . Robots Hopped . | . . . . . . . . . . . Potential Cave-ins . | . . . . . . . . . . . Cave-ins Triggered . | . . . . . . . . . . . Exploration Rate (%) 52 | 7 52 99 70 58 29 95 37 74 10 46 Regions Visited 10 Branch Regions 3 Pre-discovered Areas 1 | . . . 1 . . . . . . . Known Exits Taken 4 | . . . 1 . 1 . 1 . 1 . Unknown Exits Taken 4 | 1 1 1 . 1 . . . . . . Scrap Searched 2 | . . 2 . . . . . . . . Spaces Dug 37 | . . . . . . 16 . 21 . . Terrain Destroyed 108 | . . . . 3 23 29 4 49 . . Melee . | . . . . . . . . . . . Projectile 40 | . . . . 3 23 10 4 . . . AOE 68 | . . . . . . 19 . 49 . . Terrain Rammed . | . . . . . . . . . . . Walls Destroyed . | . . . . . . . . . . . Machines Disabled . | . . . . . . . . . . . Actions | -11 -10 -10 -10 -9 -8 -8 -8 -8 -7 -7 --------- Run | Yrd Mat Min Exi Min Mat Gar Mat Gar Fac Gar Total 5807 | 133 877 610 365 281 298 1343 393 700 325 482 Wait 731 | . 486 29 . 4 45 73 32 48 14 . Move 4345 | 98 329 524 351 255 240 1061 319 538 245 385 Hop . | . . . . . . . . . . . Pick Up 109 | 11 11 9 5 9 4 22 4 9 12 13 Fast Attach 14 | 1 1 . 2 3 2 5 . . . . Attach 53 | 6 . 5 . 2 1 7 5 10 5 12 Detach 7 | . . 3 . . . . 1 2 . 1 Swap 70 | . 4 3 2 1 1 19 6 13 10 11 Drop 65 | . 9 2 5 7 5 19 3 1 10 4 Fire 385 | 17 37 35 . . . 113 23 75 29 56 Melee 12 | . . . . . . 12 . . . . Ram . | . . . . . . . . . . . Kick . | . . . . . . . . . . . Crush . | . . . . . . . . . . . Escape Stasis 16 | . . . . . . 12 . 4 . . Rewire . | . . . . . . . . . . . Trap . | . . . . . . . . . . . Miscellaneous . | . . . . . . . . . . . Route ------- -11/Scrapyard -10/Materials (discovered 4 exits: [*Mat x2] / *Min / [*Sub]) -10/Mines (discovered 4 exits: [*Mat x2] / *Exi / [*Sub]) -10/Exiles (discovered 2 exits: *Min x2) -9/Mines -8/Materials (discovered 3 exits: *Fac x2 / Gar) -8/Garrison (discovered 4 exits: *Mat x4) -8/Materials -8/Garrison (discovered 3 exits: *Fac x3) -7/Factory -7/Garrison (discovered 1 exit: [*Fac]) History --------- Turn | Location | Event 5 | -11/Scrapyard | Discovered new exit (range 15) 204 | -11/Scrapyard | Entered Materials 314 | -10/Materials | Build established: Mutant 469 | -10/Materials | Discovered new exit (range 7) 506 | -10/Materials | Discovered new exit (range 5) 722 | -10/Materials | Repaired Autogun 748 | -10/Materials | Discovered new exit (range 16) 829 | -10/Materials | Discovered new exit (range 16) 914 | -10/Materials | Learned location of 2 exits from Subcaves 979 | -10/Materials | Learned Storage garrison access intel 1004 | -10/Materials | Derelicts attacked the area 1035 | -10/Materials | Learned Storage stockpile data 1079 | -10/Materials | Learned location of 1 exit from Recycling 1114 | -10/Materials | Learned Storage trap positions 1334 | -10/Materials | Entered Mines 1442 | -10/Mines | Discovered new exit (range 10) 1562 | -10/Mines | Assisted by bots powering up and referring to "LRC-V3" 1624 | -10/Mines | Discovered new exit (range 5) 1647 | -10/Mines | YI-UF0 nonchalantly dropped a Grenade Launcher on the ground 1733 | -10/Mines | Destroyed YI-UF0 1760 | -10/Mines | Lost 3 allies 1833 | -10/Mines | Learned 4 Materials zone layouts 1950 | -10/Mines | Discovered new exit (range 10) 2062 | -10/Mines | Lost 3 parts (1p2n) 2119 | -10/Mines | Deemed a non-threat by the Exiles lab entrance 2119 | -10/Mines | Discovered new exit (range 5) 2301 | -10/Mines | Entered Exiles 2302 | -10/Exiles | Identified exit to Mines 2324 | -10/Exiles | Met 8R-AWN 2339 | -10/Exiles | Met EX-HEX 2395 | -10/Exiles | Met EX-DEC 2481 | -10/Exiles | Learned location of Zion (-6) 2496 | -10/Exiles | Met EX-BIN 2508 | -10/Exiles | Aligned with FarCom system 2509 | -10/Exiles | Given EX-Vault access code 2530 | -10/Exiles | Opened EX-Vault 2538 | -10/Exiles | Found Modified TNC 2540 | -10/Exiles | Found AWS/Gauss 2549 | -10/Exiles | Found Chronowheel 2572 | -10/Exiles | Warned to stay clear of 0b10 Research branches 2646 | -10/Exiles | Stole three prototypes: AWS/Gauss, Modified TNC, Chronowheel 2646 | -10/Exiles | Entered Mines 2651 | -9/Mines | Met a Derelict bent on vengeance 2745 | -9/Mines | Met a Derelict shopkeep closing up shop 2831 | -9/Mines | Discovered new exit (range 9) 2966 | -9/Mines | Entered Materials 2966 | -8/Materials | Evolved 4 slots: Utility x4 2967 | -8/Materials | Identified exit to Factory 3127 | -8/Materials | Discovered exit to Factory (range 7) 3244 | -8/Materials | Garrison activated, responded to threat 3300 | -8/Materials | Identified exit to Garrison 3311 | -8/Materials | Entered Garrison 3354 | -8/Garrison | AWS/Gauss suddenly broke down 3437 | -8/Garrison | Triggered checkpoint 3464 | -8/Garrison | Triggered checkpoint 3481 | -8/Garrison | Build established: Hacker-Mutant 3559 | -8/Garrison | Garrison Relay disabled 3648 | -8/Garrison | Triggered checkpoint 3659 | -8/Garrison | Triggered checkpoint 3681 | -8/Garrison | Triggered checkpoint 3844 | -8/Garrison | Triggered checkpoint 3863 | -8/Garrison | Triggered checkpoint 3894 | -8/Garrison | Discovered new exit (range 13) 3912 | -8/Garrison | Build established: Commander-Mutant 4026 | -8/Garrison | Garrison Relay disabled 4029 | -8/Garrison | Garrison Relay disabled 4078 | -8/Garrison | P-60 Hacker assimilated allied Trooper 3a 4651 | -8/Garrison | Discovered new exit (range 10) 4703 | -8/Garrison | Triggered checkpoint 4741 | -8/Garrison | Garrison Relay disabled 5092 | -8/Garrison | Discovered new exit (range 12) 5097 | -8/Garrison | Triggered checkpoint 5132 | -8/Garrison | Garrison Relay disabled 5134 | -8/Garrison | Triggered checkpoint 5399 | -8/Garrison | Triggered checkpoint 5443 | -8/Garrison | Triggered checkpoint 5448 | -8/Garrison | Discovered new exit (range 5) 5678 | -8/Garrison | Installed Relay Interface Framework 5877 | -8/Garrison | Entered Materials 5877 | -8/Materials | Accompanied by 8 allies 5964 | -8/Materials | Build established: Bothacker-Mutant 5965 | -8/Materials | Central database locked down 6277 | -8/Materials | First assault squad dispatched 6343 | -8/Materials | Lost 10 allies 6613 | -8/Materials | Identified exit to Garrison 6627 | -8/Materials | Entered Garrison 6631 | -8/Garrison | Triggered checkpoint 6675 | -8/Garrison | Rescued a captive Derelict 6680 | -8/Garrison | Rescued a captive Derelict 6732 | -8/Garrison | Lost 3 allies 6753 | -8/Garrison | Garrison Relay disabled 7029 | -8/Garrison | Triggered checkpoint 7055 | -8/Garrison | Core integrity fell below 50% 7082 | -8/Garrison | Destroyed 7 combat bots 7117 | -8/Garrison | Lost 3 parts (1p1n1w) 7191 | -8/Garrison | Discovered exit to Factory (range 10) 7287 | -8/Garrison | Expanded RIF knowledge: Signal Jamming 7373 | -8/Garrison | Triggered checkpoint 7479 | -8/Garrison | Discovered exit to Factory (range 10) 7661 | -8/Garrison | Discovered exit to Factory (range 12) 7723 | -8/Garrison | Triggered checkpoint 7960 | -8/Garrison | Entered Factory 7960 | -7/Factory | Evolved 2 slots: Propulsion x1, Weapon x1 7962 | -7/Factory | FarCom data flow suspended 8254 | -7/Factory | Build established: Bothacker-Gunner 8515 | -7/Factory | Identified exit to Garrison 8545 | -7/Factory | Entered Garrison 8573 | -7/Garrison | Triggered checkpoint 8630 | -7/Garrison | Expanded RIF knowledge: Patrol Navigation 8694 | -7/Garrison | Lost 3 parts (1n2w) 8698 | -7/Garrison | Garrison Relay disabled 8769 | -7/Garrison | Triggered checkpoint 8858 | -7/Garrison | Garrison Relay disabled 8909 | -7/Garrison | Triggered checkpoint 8998 | -7/Garrison | Discovered new exit (range 10) 9131 | -7/Garrison | Triggered checkpoint 9142 | -7/Garrison | Garrison Relay disabled 9299 | -7/Garrison | Triggered checkpoint 9355 | -7/Garrison | Spotted B-75 Beast 9358 | -7/Garrison | Spotted B-75 Beast 9389 | -7/Garrison | Core integrity fell below 50% 9401 | -7/Garrison | Core integrity fell below 20% 9409 | -7/Garrison | Destroyed B-75 Beast 9410 | -7/Garrison | Destroyed by B-75 Beast with Magnetic Acceleration Cannon Last Messages --------------- >>amplify_resonance Amplifying resonance, compromised power stability. 09308_ S-27 Virus Lgt. Nuclear Core critical resonance detonation. 09308_ S-27 Virus destroyed. 09376_ B-75 Beast springs to life. 09379_ Acquired Lgt. Treads+. 09380_ Adv. Treads blasted off. 09380_ Knocked back. 09380_ Imp. Deuterium Engine destroyed. 09382_ Slug penetrates B-75 Beast. 09384_ Lgt. Treads+ destroyed. 09386_ Slug penetrates B-75 Beast. 09388_ Gauss Rifle destroyed. 09391_ Knocked back. 09393_ B-75 Beast Hvy. Machine Gun blasted off. 09403_ Core Analyzer destroyed. 09403_ Flak Gun destroyed. 09403_ Relay Coupler [Swarmer] destroyed. 09403_ Knocked back. 09409_ B-75 Beast destroyed. Map ----- +----------------------------------------------------+ | ?????????????????# #?#####?# #???# #?#####?????? | | ?????????????????# ###!!!### #???#*=###!!!#??#### | | ?????????????????# #???# [ #### "" | | ?????????????????# ######### #???#[ ###### | | ?????????????????# #???????# #???# #????# ### "" | | ?????????????????# #???????# #???# #????# #?#### | | ?????????????????# #???????# #???# #????# #????? | | ?????????????????# #?????### #???# ###??# #????? | | ?????????????????# #??#### #???# [#### ###### | | ?????????????????# #??# " #???# ! " ! | | ?????????????????# #??# ## #???# =*########### | | ?????????????????# #?????### #???# ###?????????# | | ?????????????????# #########!=##### ############# | | ?????????????????# ! =! | | ?????????????????# | | ?????????????????# ^ | | ?????????????????# ####### #################### | | ?????????????????#= #?????# #??????????????????? | | ?????????????????#%* #?????# #??????????????????? | | ?????????????????+!= #?????# #??????????????????? | | ?????????????????# #?????#!%#??????????????????? | | ???????????####### #???###%=##?????????????????? | | ???????????# ## #???# #[==#?????????????????? | | ??????###### ## #???# %% ##???????####??????? | | ####### ###### */####]]] !!!#??????? | | * @ =%! %% %BB #??????? | | %% = [ BB #??????? | | ####### ## ## ############## % % #??????? | | ??????# % ## ## #???????????????? #??????? | | ?????=%%[ "????????????????????#??????? | | ????# =[% "???????????????????????????? | | ????# "???????????????????????????? | | ????# "???????????????????????????? | | ????### ## ## #???????????????????????????? | | ??????# ##^^^^## #???????????????????????????? | | ??????# ???????????????????????????? | | ??????# ???????????????????????????? | | ??????# ???????????????????????????? | | ??????## ##""""######???????????????????????????? | | ???????? #??????????????????????????????????????? | | ???????? ???????????????????????????????????????? | | ?????????????????????????????????????????????????? | | ?????????????????????????????????????????????????? | | ?????????????????????????????????????????????????? | | ?????????????????????????????????????????????????? | | ?????????????????????????????????????????????????? | | ?????????????????????????????????????????????????? | | ?????????????????????????????????????????????????? | | ?????????????????????????????????????????????????? | | ?????????????????????????????????????????????????? | +----------------------------------------------------+ Best States ------------- Heat Dissipation 56 Energy Generation 18 Energy Capacity 310 Matter Stores 500 Matter Capacity 500 Sight Range 16 Terrain Scan Density 10 Armor Coverage 225 Evasion (%) 50 Target Analysis 5 Core Analysis 6 Recoil Reduction 3 Salvage Targeting 2 Offensive Hacking 10 Defensive Hacking 10 Relay Coupler Types 3 Relay Coupler Value 76 Item Schematics ----------------- Datajack | -10/Materials | Hacked Triangulator | -7/Factory | Hacked Robot Schematics ------------------ None Fabricated ------------ Nothing Repaired ---------- Autogun | 66% | -10/Materials Studied --------- Lgt. Treads | -8/Materials | Hacked Alien Tech Used ----------------- None Achievements -------------- None Challenges ------------ None Game ------ Seed ImpulseDirectedCanceller Manual? 0 Play Time 00:58:31 Cumulative 637.1 hours Start 2026.01.15 @ 02:50:19 End 2026.01.16 @ 06:51:33 Sessions 4 Manual Loads 0 Difficulty Rogue Special Mode None Game No. 807 Rogue 807 Adventurer 0 Explorer 0 Win Type - Total 23 Types 10/1/3/3/2/0/2/2/0/0 Lore% 96 Gallery% 92 Achievement% 80 Wizard Run 0 Options --------- Layout 0 ASCII 0 Keyboard 0 Movement Mouse Keybinds 0 Fullscreen 1 Font 24/Terminus Map View 76x50 Zoom Use 0% Tactical HUD 1 Map Filters NONE Filters NONE Steam 1 RUN: c1696cab-d4ec-425f-87b5-ee9b1e553606